[Event "Betsys MČR v online bleskovém šachu 2021"]
[Site "Chess.com"]
[Date "2021.04.17"]
[Round "3"]
[White "Evca64"]
[Black "prosinec"]
[Result "1-0"]
[WhiteElo "2074"]
[BlackElo "1723"]
[TimeControl "180+1"]
[EndTime "9:22:25 PDT"]
[Termination "Uživatel Evca64 zvítězil po vzdání soupeře"]

1. e4 {[%clk 0:03:00.9]} 1... d6 {[%clk 0:02:59.6]} 2. d4 {[%clk 0:03:00.5]}
2... Nf6 {[%clk 0:02:59.1]} 3. Nc3 {[%clk 0:03:00.1]} 3... c6 {[%clk 0:02:57.7]}
4. f4 {[%clk 0:02:59.6]} 4... Qa5 {[%clk 0:02:56.6]} 5. Nf3 {[%clk 0:02:55.4]}
5... Bg4 {[%clk 0:02:53]} 6. Bd3 {[%clk 0:02:52.4]} 6... e5 {[%clk 0:02:46.8]}
7. Be3 {[%clk 0:02:37.4]} 7... Nbd7 {[%clk 0:02:40.7]} 8. Qd2 {[%clk 0:02:34.7]}
8... Bxf3 {[%clk 0:02:37]} 9. gxf3 {[%clk 0:02:34.1]} 9... Be7 {[%clk
0:02:31.8]} 10. O-O-O {[%clk 0:02:15.7]} 10... O-O {[%clk 0:02:31]} 11. Kb1
{[%clk 0:02:15.1]} 11... b5 {[%clk 0:02:27.3]} 12. Nd5 {[%clk 0:02:05.1]} 12...
Qxd2 {[%clk 0:02:24.5]} 13. Nxe7+ {[%clk 0:02:04.5]} 13... Kh8 {[%clk
0:02:21.5]} 14. Rxd2 {[%clk 0:02:03.9]} 1-0

[Event "Betsys MČR v online bleskovém šachu 2021"]
[Site "Chess.com"]
[Date "2021.04.17"]
[Round "3"]
[White "tomasPardubice"]
[Black "CZpeeeter"]
[Result "1-0"]
[WhiteElo "2077"]
[BlackElo "1725"]
[TimeControl "180+1"]
[EndTime "9:22:27 PDT"]
[Termination "Uživatel tomasPardubice zvítězil po vzdání soupeře"]

1. e4 {[%clk 0:02:57.4]} 1... e5 {[%clk 0:02:56.1]} 2. Nf3 {[%clk 0:02:57.1]}
2... Nc6 {[%clk 0:02:55.5]} 3. Bb5 {[%clk 0:02:57]} 3... Nge7 {[%clk 0:02:55]}
4. O-O {[%clk 0:02:56.6]} 4... g6 {[%clk 0:02:54.8]} 5. c3 {[%clk 0:02:56.3]}
5... Bg7 {[%clk 0:02:54.9]} 6. d4 {[%clk 0:02:56.5]} 6... exd4 {[%clk 0:02:55]}
7. cxd4 {[%clk 0:02:56.3]} 7... d5 {[%clk 0:02:55]} 8. exd5 {[%clk 0:02:56.6]}
8... Qxd5 {[%clk 0:02:53]} 9. Nc3 {[%clk 0:02:56.6]} 9... Qd8 {[%clk 0:02:49]}
10. d5 {[%clk 0:02:53.3]} 10... Bxc3 {[%clk 0:02:43.9]} 11. dxc6 {[%clk
0:02:52.9]} 11... bxc6 {[%clk 0:02:42.7]} 12. Qxd8+ {[%clk 0:02:28.5]} 12...
Kxd8 {[%clk 0:02:42.2]} 13. bxc3 {[%clk 0:02:22.4]} 13... cxb5 {[%clk
0:02:41.6]} 14. Bg5 {[%clk 0:02:22.9]} 14... Be6 {[%clk 0:02:36.8]} 15. Nd4
{[%clk 0:02:22.9]} 15... a6 {[%clk 0:02:19]} 16. Nc6+ {[%clk 0:02:22.1]} 16...
Kd7 {[%clk 0:02:15.6]} 17. Nxe7 {[%clk 0:02:22.3]} 17... h6 {[%clk 0:02:08.9]}
18. Bf6 {[%clk 0:02:20.5]} 18... Rhe8 {[%clk 0:02:08.9]} 19. Rfd1+ {[%clk
0:02:19.1]} 1-0

[Event "Betsys MČR v online bleskovém šachu 2021"]
[Site "Chess.com"]
[Date "2021.04.17"]
[Round "3"]
[White "phil3"]
[Black "maelic"]
[Result "1-0"]
[WhiteElo "2159"]
[BlackElo "1779"]
[TimeControl "180+1"]
[EndTime "9:22:42 PDT"]
[Termination "Uživatel phil3 zvítězil po vzdání soupeře"]

1. e4 {[%clk 0:03:00.9]} 1... e6 {[%clk 0:03:00.2]} 2. d4 {[%clk 0:03:00.7]}
2... d5 {[%clk 0:03:00.6]} 3. Nc3 {[%clk 0:03:00.9]} 3... Bb4 {[%clk 0:03:00.3]}
4. e5 {[%clk 0:03:00.1]} 4... c5 {[%clk 0:03:00.7]} 5. a3 {[%clk 0:03:00.4]}
5... Bxc3+ {[%clk 0:03:01.2]} 6. bxc3 {[%clk 0:03:00.6]} 6... Qc7 {[%clk
0:03:01.5]} 7. Qg4 {[%clk 0:02:56.8]} 7... f5 {[%clk 0:03:01.4]} 8. Qg3 {[%clk
0:02:55.1]} 8... Ne7 {[%clk 0:02:59.8]} 9. Ne2 {[%clk 0:02:49.4]} 9... b6 {[%clk
0:02:56.5]} 10. a4 {[%clk 0:02:44.7]} 10... Ba6 {[%clk 0:02:56.1]} 11. Ba3
{[%clk 0:02:43.3]} 11... O-O {[%clk 0:02:39.3]} 12. Nf4 {[%clk 0:02:38.6]} 12...
Bxf1 {[%clk 0:01:59.4]} 13. Nxe6 {[%clk 0:02:32]} 13... Qxe5+ {[%clk 0:01:29.5]}
14. Qxe5 {[%clk 0:02:26.5]} 1-0

[Event "Betsys MČR v online bleskovém šachu 2021"]
[Site "Chess.com"]
[Date "2021.04.17"]
[Round "3"]
[White "Tlaskin"]
[Black "vikysachy"]
[Result "1-0"]
[WhiteElo "1367"]
[BlackElo "851"]
[TimeControl "180+1"]
[EndTime "9:22:42 PDT"]
[Termination "Uživatel Tlaskin zvítězil matem"]

1. e4 {[%clk 0:03:00.9]} 1... e5 {[%clk 0:02:59.8]} 2. Nf3 {[%clk 0:03:00.1]}
2... Nc6 {[%clk 0:02:59.2]} 3. Nc3 {[%clk 0:02:58.3]} 3... Bc5 {[%clk
0:02:58.8]} 4. Nxe5 {[%clk 0:02:54.2]} 4... Nxe5 {[%clk 0:02:55]} 5. d4 {[%clk
0:02:53.4]} 5... Bxd4 {[%clk 0:02:53.8]} 6. Qxd4 {[%clk 0:02:52.3]} 6... Nc6
{[%clk 0:02:49.6]} 7. Qxg7 {[%clk 0:02:49.3]} 7... Qe7 {[%clk 0:02:44.1]} 8.
Qxh8 {[%clk 0:02:42.7]} 8... Qxe4+ {[%clk 0:02:40.6]} 9. Nxe4 {[%clk 0:02:39.4]}
9... d5 {[%clk 0:02:38.8]} 10. Qxg8+ {[%clk 0:02:34.2]} 10... Ke7 {[%clk
0:02:38.7]} 11. Bg5+ {[%clk 0:02:28.4]} 11... Ke6 {[%clk 0:02:38.1]} 12. Nc5+
{[%clk 0:02:17.9]} 12... Kd6 {[%clk 0:02:33.3]} 13. Qf8+ {[%clk 0:02:09.2]}
13... Ke5 {[%clk 0:02:31.7]} 14. O-O-O {[%clk 0:01:56]} 14... Kf5 {[%clk
0:02:27.8]} 15. Qh6 {[%clk 0:01:42.1]} 15... Ke5 {[%clk 0:02:21.9]} 16. Qf6#
{[%clk 0:01:37.5]} 1-0

[Event "Betsys MČR v online bleskovém šachu 2021"]
[Site "Chess.com"]
[Date "2021.04.17"]
[Round "3"]
[White "catanist19"]
[Black "Tah_na_g12"]
[Result "1-0"]
[WhiteElo "1738"]
[BlackElo "1177"]
[TimeControl "180+1"]
[EndTime "9:22:47 PDT"]
[Termination "Uživatel catanist19 zvítězil matem"]

1. d4 {[%clk 0:02:58.1]} 1... Nf6 {[%clk 0:02:57.9]} 2. c4 {[%clk 0:02:57.3]}
2... e6 {[%clk 0:02:55.4]} 3. Nc3 {[%clk 0:02:57]} 3... d5 {[%clk 0:02:54]} 4.
e3 {[%clk 0:02:56.7]} 4... c6 {[%clk 0:02:52]} 5. Nf3 {[%clk 0:02:56.5]} 5...
Bb4 {[%clk 0:02:48.6]} 6. Bd3 {[%clk 0:02:56]} 6... b6 {[%clk 0:02:38.4]} 7. O-O
{[%clk 0:02:54.6]} 7... c5 {[%clk 0:02:38]} 8. a3 {[%clk 0:02:51.3]} 8... cxd4
{[%clk 0:02:35.4]} 9. axb4 {[%clk 0:02:40.4]} 9... dxc3 {[%clk 0:02:34.7]} 10.
bxc3 {[%clk 0:02:36.6]} 10... dxc4 {[%clk 0:02:34.8]} 11. Bxc4 {[%clk
0:02:34.3]} 11... Qxd1 {[%clk 0:02:34.7]} 12. Rxd1 {[%clk 0:02:32.1]} 12... Nc6
{[%clk 0:02:30.2]} 13. Bb5 {[%clk 0:02:22.5]} 13... Bb7 {[%clk 0:02:29.4]} 14.
Ne5 {[%clk 0:02:13.5]} 14... O-O {[%clk 0:02:25.3]} 15. Bxc6 {[%clk 0:02:05.4]}
15... Bxc6 {[%clk 0:02:26.2]} 16. Nxc6 {[%clk 0:02:04.5]} 16... Rac8 {[%clk
0:02:23.1]} 17. Ne7+ {[%clk 0:02:03.4]} 17... Kh8 {[%clk 0:02:20.9]} 18. Nxc8
{[%clk 0:02:02.6]} 18... Rxc8 {[%clk 0:02:21.8]} 19. Bb2 {[%clk 0:02:00]} 19...
Nd5 {[%clk 0:02:18.4]} 20. Rxa7 {[%clk 0:01:56.6]} 20... Nxc3 {[%clk 0:02:17]}
21. Bxc3 {[%clk 0:01:55]} 21... Rxc3 {[%clk 0:02:17.9]} 22. Rd8# {[%clk
0:01:50.8]} 1-0

[Event "Betsys MČR v online bleskovém šachu 2021"]
[Site "Chess.com"]
[Date "2021.04.17"]
[Round "3"]
[White "Petr_Zacek"]
[Black "Petulak08"]
[Result "1-0"]
[WhiteElo "1779"]
[BlackElo "1206"]
[TimeControl "180+1"]
[EndTime "9:22:49 PDT"]
[Termination "Uživatel Petr_Zacek zvítězil matem"]

1. d4 {[%clk 0:03:00.9]} 1... Nf6 {[%clk 0:02:58]} 2. Bg5 {[%clk 0:02:58.8]}
2... h6 {[%clk 0:02:57.4]} 3. Bxf6 {[%clk 0:02:58.5]} 3... gxf6 {[%clk
0:02:55.9]} 4. e4 {[%clk 0:02:58.2]} 4... Bg7 {[%clk 0:02:56.8]} 5. c3 {[%clk
0:02:56.6]} 5... e5 {[%clk 0:02:56.8]} 6. Nf3 {[%clk 0:02:55.5]} 6... c6 {[%clk
0:02:52.8]} 7. Bd3 {[%clk 0:02:52.4]} 7... Qb6 {[%clk 0:02:51.7]} 8. Qc2 {[%clk
0:02:49.9]} 8... d6 {[%clk 0:02:48.6]} 9. O-O {[%clk 0:02:46.2]} 9... Bg4 {[%clk
0:02:48.3]} 10. dxe5 {[%clk 0:02:41.3]} 10... fxe5 {[%clk 0:02:47.2]} 11. Nbd2
{[%clk 0:02:39]} 11... Bf6 {[%clk 0:02:44.1]} 12. Nc4 {[%clk 0:02:28.8]} 12...
Bxf3 {[%clk 0:02:41.8]} 13. Nxb6 {[%clk 0:02:24.5]} 13... Rg8 {[%clk 0:02:36.8]}
14. g3 {[%clk 0:02:21.3]} 14... axb6 {[%clk 0:02:35.5]} 15. Be2 {[%clk
0:02:14.5]} 15... Bxe2 {[%clk 0:02:29.1]} 16. Qxe2 {[%clk 0:02:14.1]} 16... Rg5
{[%clk 0:02:28.5]} 17. a3 {[%clk 0:02:09.4]} 17... Nd7 {[%clk 0:02:28.5]} 18. f4
{[%clk 0:02:08.7]} 18... Ke7 {[%clk 0:02:29.4]} 19. fxg5 {[%clk 0:02:08]} 19...
Ke8 {[%clk 0:02:30.3]} 20. gxf6 {[%clk 0:02:07.6]} 20... d5 {[%clk 0:02:26.8]}
21. Qg4 {[%clk 0:02:06]} 21... Kf8 {[%clk 0:02:23.3]} 22. Qg7+ {[%clk 0:02:05]}
22... Ke8 {[%clk 0:02:23.6]} 23. Qg8+ {[%clk 0:02:01.3]} 23... Nf8 {[%clk
0:02:23.8]} 24. Rf5 {[%clk 0:01:57.3]} 24... dxe4 {[%clk 0:02:22.3]} 25. Rxe5+
{[%clk 0:01:56.8]} 25... Kd7 {[%clk 0:02:22.5]} 26. Qxf7+ {[%clk 0:01:56.6]}
26... Kd6 {[%clk 0:02:22.4]} 27. Qe7# {[%clk 0:01:54.6]} 1-0

[Event "Betsys MČR v online bleskovém šachu 2021"]
[Site "Chess.com"]
[Date "2021.04.17"]
[Round "3"]
[White "MartinCerveny"]
[Black "PaulS_CR"]
[Result "1-0"]
[WhiteElo "2651"]
[BlackElo "1840"]
[TimeControl "180+1"]
[EndTime "9:22:51 PDT"]
[Termination "Uživatel MartinCerveny zvítězil po vzdání soupeře"]

1. d4 {[%clk 0:03:00.9]} 1... Nf6 {[%clk 0:02:58.7]} 2. c4 {[%clk 0:03:00.1]}
2... e6 {[%clk 0:02:58.4]} 3. Nf3 {[%clk 0:02:59.6]} 3... Bb4+ {[%clk
0:02:57.3]} 4. Bd2 {[%clk 0:02:58.9]} 4... Qe7 {[%clk 0:02:55.9]} 5. e3 {[%clk
0:02:58.2]} 5... Bxd2+ {[%clk 0:02:51.3]} 6. Nbxd2 {[%clk 0:02:57.2]} 6... b6
{[%clk 0:02:50.4]} 7. Bd3 {[%clk 0:02:56.1]} 7... d5 {[%clk 0:02:48.7]} 8. Rc1
{[%clk 0:02:52.8]} 8... O-O {[%clk 0:02:41]} 9. O-O {[%clk 0:02:48.3]} 9... Bb7
{[%clk 0:02:40.4]} 10. cxd5 {[%clk 0:02:45.2]} 10... exd5 {[%clk 0:02:33.6]} 11.
Ne5 {[%clk 0:02:44.5]} 11... Nfd7 {[%clk 0:02:18.7]} 12. Rxc7 {[%clk 0:02:36.9]}
12... Bc8 {[%clk 0:02:12.6]} 13. Qc2 {[%clk 0:02:28.6]} 13... Na6 {[%clk
0:02:10.2]} 14. Bxa6 {[%clk 0:02:21.8]} 14... Qd6 {[%clk 0:01:38.2]} 15. Bxc8
{[%clk 0:02:11.2]} 1-0

[Event "Betsys MČR v online bleskovém šachu 2021"]
[Site "Chess.com"]
[Date "2021.04.17"]
[Round "3"]
[White "HerjoAnpe"]
[Black "Newyork6"]
[Result "1-0"]
[WhiteElo "1246"]
[BlackElo "333"]
[TimeControl "180+1"]
[EndTime "9:22:57 PDT"]
[Termination "Uživatel HerjoAnpe zvítězil matem"]

1. d4 {[%clk 0:03:00.9]} 1... Nc6 {[%clk 0:02:59]} 2. Nf3 {[%clk 0:03:00.7]}
2... b6 {[%clk 0:02:58]} 3. e3 {[%clk 0:03:00.6]} 3... Bb7 {[%clk 0:02:57.1]} 4.
c3 {[%clk 0:03:00.3]} 4... e6 {[%clk 0:02:53.9]} 5. Nbd2 {[%clk 0:03:00.2]} 5...
Be7 {[%clk 0:02:53.4]} 6. Bd3 {[%clk 0:03:00.3]} 6... Nf6 {[%clk 0:02:50.9]} 7.
O-O {[%clk 0:02:58.7]} 7... O-O {[%clk 0:02:50.1]} 8. Qc2 {[%clk 0:02:57]} 8...
a6 {[%clk 0:02:41.1]} 9. e4 {[%clk 0:02:56.8]} 9... Ra7 {[%clk 0:02:39.9]} 10.
e5 {[%clk 0:02:56.8]} 10... d6 {[%clk 0:02:39.7]} 11. exf6 {[%clk 0:02:55.8]}
11... gxf6 {[%clk 0:02:39.1]} 12. Bxh7+ {[%clk 0:02:54.7]} 12... Kh8 {[%clk
0:02:32.6]} 13. Nh4 {[%clk 0:02:49.3]} 13... d5 {[%clk 0:02:28.3]} 14. Ndf3
{[%clk 0:02:32.8]} 14... Nxd4 {[%clk 0:02:26.7]} 15. Nxd4 {[%clk 0:02:29.5]}
15... c6 {[%clk 0:02:13.4]} 16. Qd3 {[%clk 0:02:26.4]} 16... b5 {[%clk
0:02:12.2]} 17. Nhf3 {[%clk 0:02:25]} 17... Ra8 {[%clk 0:02:11.3]} 18. Nd2
{[%clk 0:02:24.6]} 18... a5 {[%clk 0:02:09.2]} 19. Qh3 {[%clk 0:02:23.2]} 19...
Ba6 {[%clk 0:02:08.4]} 20. Bf5+ {[%clk 0:02:16.7]} 20... Kg8 {[%clk 0:01:44.4]}
21. Qh7# {[%clk 0:02:13.7]} 1-0

[Event "Betsys MČR v online bleskovém šachu 2021"]
[Site "Chess.com"]
[Date "2021.04.17"]
[Round "3"]
[White "Staci_fiknout_Navara_Plat"]
[Black "ritchi12"]
[Result "1-0"]
[WhiteElo "1637"]
[BlackElo "1113"]
[TimeControl "180+1"]
[EndTime "9:23:00 PDT"]
[Termination "Uživatel Staci_fiknout_Navara_Plat zvítězil matem"]

1. c4 {[%clk 0:03:00.9]} 1... e5 {[%clk 0:02:59.5]} 2. Nc3 {[%clk 0:03:01]} 2...
Nf6 {[%clk 0:02:58.9]} 3. g3 {[%clk 0:03:00.9]} 3... Bc5 {[%clk 0:02:52.5]} 4.
Bg2 {[%clk 0:03:00.5]} 4... Ng4 {[%clk 0:02:51.9]} 5. e3 {[%clk 0:03:00.5]} 5...
d6 {[%clk 0:02:49.8]} 6. Nge2 {[%clk 0:03:00.4]} 6... O-O {[%clk 0:02:47.7]} 7.
d4 {[%clk 0:02:58.4]} 7... exd4 {[%clk 0:02:46.7]} 8. Nxd4 {[%clk 0:02:58.5]}
8... Bxd4 {[%clk 0:02:46.3]} 9. Qxd4 {[%clk 0:02:57.5]} 9... Qe7 {[%clk
0:02:43.1]} 10. O-O {[%clk 0:02:56.9]} 10... Qg5 {[%clk 0:02:38.4]} 11. Ne4
{[%clk 0:02:25.5]} 11... Qg6 {[%clk 0:02:33.4]} 12. b3 {[%clk 0:02:17.8]} 12...
Nc6 {[%clk 0:02:32.9]} 13. Qc3 {[%clk 0:02:17.1]} 13... Qh5 {[%clk 0:02:29.7]}
14. h3 {[%clk 0:02:16.6]} 14... Nh6 {[%clk 0:02:26.4]} 15. h4 {[%clk 0:02:15.5]}
15... Ne5 {[%clk 0:02:18.9]} 16. Bb2 {[%clk 0:02:14.2]} 16... Nhg4 {[%clk
0:02:15]} 17. Rad1 {[%clk 0:02:03.7]} 17... Bf5 {[%clk 0:02:04.8]} 18. f4 {[%clk
0:01:56.4]} 18... Ng6 {[%clk 0:01:54.2]} 19. Qxg7# {[%clk 0:01:53.6]} 1-0

[Event "Betsys MČR v online bleskovém šachu 2021"]
[Site "Chess.com"]
[Date "2021.04.17"]
[Round "3"]
[White "MatejKopecky13"]
[Black "Toman_26"]
[Result "1-0"]
[WhiteElo "1470"]
[BlackElo "1022"]
[TimeControl "180+1"]
[EndTime "9:23:09 PDT"]
[Termination "Uživatel MatejKopecky13 zvítězil matem"]

1. e4 {[%clk 0:03:00.9]} 1... c5 {[%clk 0:02:59.1]} 2. Nc3 {[%clk 0:03:00.6]}
2... d6 {[%clk 0:02:58.1]} 3. Nf3 {[%clk 0:02:58.6]} 3... Nc6 {[%clk 0:02:58.2]}
4. Bc4 {[%clk 0:02:58.2]} 4... Nf6 {[%clk 0:02:57.9]} 5. d3 {[%clk 0:02:56.4]}
5... g6 {[%clk 0:02:57.3]} 6. Bg5 {[%clk 0:02:54.9]} 6... Bg7 {[%clk 0:02:57.2]}
7. Qd2 {[%clk 0:02:54.5]} 7... O-O {[%clk 0:02:56.8]} 8. Bh6 {[%clk 0:02:54.5]}
8... a6 {[%clk 0:02:56.3]} 9. h4 {[%clk 0:02:51.5]} 9... b5 {[%clk 0:02:55.7]}
10. Bd5 {[%clk 0:02:50.4]} 10... Nxd5 {[%clk 0:02:54.5]} 11. Nxd5 {[%clk
0:02:51.3]} 11... Bxb2 {[%clk 0:02:41.6]} 12. Rb1 {[%clk 0:02:50.3]} 12... Bg7
{[%clk 0:02:40.7]} 13. Bxg7 {[%clk 0:02:48.4]} 13... Kxg7 {[%clk 0:02:40.4]} 14.
h5 {[%clk 0:02:48.6]} 14... Be6 {[%clk 0:02:34.8]} 15. hxg6 {[%clk 0:02:48.1]}
15... fxg6 {[%clk 0:02:34.1]} 16. Qh6+ {[%clk 0:02:46.8]} 16... Kf7 {[%clk
0:02:31.8]} 17. Ng5+ {[%clk 0:02:45]} 17... Ke8 {[%clk 0:02:24.6]} 18. Nxe6
{[%clk 0:02:44.4]} 18... Qa5+ {[%clk 0:02:08.1]} 19. Kf1 {[%clk 0:02:43.1]}
19... Rf7 {[%clk 0:01:58]} 20. Nec7+ {[%clk 0:02:31.5]} 20... Kd7 {[%clk
0:01:58]} 21. Nxa8 {[%clk 0:02:31]} 21... Qd8 {[%clk 0:01:46.5]} 22. Nab6+
{[%clk 0:02:28.6]} 22... Ke6 {[%clk 0:01:44.1]} 23. Qh3+ {[%clk 0:02:27.1]}
23... Ke5 {[%clk 0:01:41.8]} 24. f4+ {[%clk 0:02:21.9]} 24... Kd4 {[%clk
0:01:36.7]} 25. Qe3# {[%clk 0:02:18.6]} 1-0

[Event "Betsys MČR v online bleskovém šachu 2021"]
[Site "Chess.com"]
[Date "2021.04.17"]
[Round "3"]
[White "Richarlito"]
[Black "Kamilotka"]
[Result "1-0"]
[WhiteElo "2007"]
[BlackElo "1640"]
[TimeControl "180+1"]
[EndTime "9:23:22 PDT"]
[Termination "Uživatel Richarlito zvítězil po vzdání soupeře"]

1. e4 {[%clk 0:03:00.9]} 1... e5 {[%clk 0:02:59.7]} 2. Nf3 {[%clk 0:03:00.2]}
2... Nc6 {[%clk 0:02:59.5]} 3. Nc3 {[%clk 0:02:59.9]} 3... Nf6 {[%clk 0:02:59]}
4. d4 {[%clk 0:02:59.3]} 4... exd4 {[%clk 0:02:54.2]} 5. Nxd4 {[%clk 0:02:59]}
5... d6 {[%clk 0:02:53.8]} 6. Bb5 {[%clk 0:02:57.9]} 6... Bd7 {[%clk 0:02:53.8]}
7. Bxc6 {[%clk 0:02:57.8]} 7... Bxc6 {[%clk 0:02:53.9]} 8. O-O {[%clk 0:02:57]}
8... Be7 {[%clk 0:02:53.6]} 9. Re1 {[%clk 0:02:56.6]} 9... O-O {[%clk
0:02:53.7]} 10. Bg5 {[%clk 0:02:55.5]} 10... h6 {[%clk 0:02:52]} 11. Bh4 {[%clk
0:02:54.9]} 11... Nh7 {[%clk 0:02:51.3]} 12. Bg3 {[%clk 0:02:30.6]} 12... Bh4
{[%clk 0:02:45.8]} 13. Nf5 {[%clk 0:02:25.7]} 13... Bxg3 {[%clk 0:02:41.3]} 14.
hxg3 {[%clk 0:02:25.8]} 14... Bd7 {[%clk 0:02:37.8]} 15. Nd5 {[%clk 0:02:22.1]}
15... Bxf5 {[%clk 0:02:35.6]} 16. exf5 {[%clk 0:02:20.1]} 16... Re8 {[%clk
0:02:27.5]} 17. Rxe8+ {[%clk 0:02:15.5]} 17... Qxe8 {[%clk 0:02:25.2]} 18. Nxc7
{[%clk 0:02:15.6]} 18... Qc8 {[%clk 0:02:15.5]} 19. Nxa8 {[%clk 0:02:15.3]}
19... Qxa8 {[%clk 0:02:15.5]} 20. Qxd6 {[%clk 0:02:15.3]} 20... Nf6 {[%clk
0:02:14.8]} 21. Rd1 {[%clk 0:02:10.8]} 21... Kh7 {[%clk 0:02:07]} 22. Qd8 {[%clk
0:02:10.2]} 22... Qxd8 {[%clk 0:02:05.1]} 23. Rxd8 {[%clk 0:02:09]} 23... Ne4
{[%clk 0:02:01]} 24. Rd7 {[%clk 0:02:07.3]} 24... Kg8 {[%clk 0:02:00.6]} 25.
Rxb7 {[%clk 0:02:07.1]} 25... a5 {[%clk 0:02:00]} 26. Ra7 {[%clk 0:02:06.5]}
26... Nc5 {[%clk 0:01:54.2]} 27. Rxa5 {[%clk 0:02:05.9]} 27... Nd7 {[%clk
0:01:54.2]} 28. c4 {[%clk 0:02:04.6]} 28... Nf6 {[%clk 0:01:53.5]} 29. c5 {[%clk
0:02:03.6]} 29... Nd7 {[%clk 0:01:53]} 30. c6 {[%clk 0:02:03.5]} 1-0

[Event "Betsys MČR v online bleskovém šachu 2021"]
[Site "Chess.com"]
[Date "2021.04.17"]
[Round "3"]
[White "PavelNo"]
[Black "SamikGame"]
[Result "0-1"]
[WhiteElo "1981"]
[BlackElo "1646"]
[TimeControl "180+1"]
[EndTime "9:23:28 PDT"]
[Termination "Uživatel SamikGame zvítězil po vzdání soupeře"]

1. e4 {[%clk 0:03:00.9]} 1... e5 {[%clk 0:02:56.6]} 2. Nf3 {[%clk 0:03:00.2]}
2... Nc6 {[%clk 0:02:55.5]} 3. Bb5 {[%clk 0:02:59.3]} 3... Bc5 {[%clk
0:02:52.1]} 4. c3 {[%clk 0:02:57.4]} 4... Nf6 {[%clk 0:02:48.9]} 5. O-O {[%clk
0:02:51.2]} 5... O-O {[%clk 0:02:45.8]} 6. d4 {[%clk 0:02:50.3]} 6... exd4
{[%clk 0:02:40.7]} 7. cxd4 {[%clk 0:02:50.3]} 7... Bb6 {[%clk 0:02:39.4]} 8. Nc3
{[%clk 0:02:44.8]} 8... a6 {[%clk 0:02:36.3]} 9. Ba4 {[%clk 0:02:43.7]} 9... d5
{[%clk 0:02:32]} 10. e5 {[%clk 0:02:41.6]} 10... Ne4 {[%clk 0:02:27.5]} 11. h3
{[%clk 0:02:39.5]} 11... Bf5 {[%clk 0:02:22.3]} 12. Be3 {[%clk 0:02:32.2]} 12...
Nxc3 {[%clk 0:02:08.6]} 13. bxc3 {[%clk 0:02:31.1]} 13... h6 {[%clk 0:02:01]}
14. Qd2 {[%clk 0:02:30.9]} 14... Na5 {[%clk 0:01:56.1]} 15. Bf4 {[%clk
0:02:22.5]} 15... Nc4 {[%clk 0:01:47.8]} 16. Qc1 {[%clk 0:02:21.8]} 16... Rc8
{[%clk 0:01:38.4]} 17. Nd2 {[%clk 0:02:21.3]} 17... c5 {[%clk 0:01:33.9]} 18.
Nxc4 {[%clk 0:02:20.1]} 18... dxc4 {[%clk 0:01:32.7]} 19. dxc5 {[%clk
0:02:10.9]} 19... Bxc5 {[%clk 0:01:33.6]} 20. Rd1 {[%clk 0:02:06.1]} 20... Qh4
{[%clk 0:01:26]} 21. Bg3 {[%clk 0:02:03.2]} 21... Qxg3 {[%clk 0:01:25.2]} 0-1

[Event "Betsys MČR v online bleskovém šachu 2021"]
[Site "Chess.com"]
[Date "2021.04.17"]
[Round "3"]
[White "conysek"]
[Black "HCMotorCB"]
[Result "0-1"]
[WhiteElo "2112"]
[BlackElo "2372"]
[TimeControl "180+1"]
[EndTime "9:23:30 PDT"]
[Termination "Uživatel HCMotorCB zvítězil po vzdání soupeře"]

1. e4 {[%clk 0:03:00.9]} 1... c5 {[%clk 0:02:59.7]} 2. d4 {[%clk 0:03:00.2]}
2... cxd4 {[%clk 0:02:59.6]} 3. c3 {[%clk 0:03:00.4]} 3... d3 {[%clk 0:03:00]}
4. Bxd3 {[%clk 0:03:00.3]} 4... g6 {[%clk 0:03:00.5]} 5. Nf3 {[%clk 0:03:00.7]}
5... Bg7 {[%clk 0:03:00.8]} 6. O-O {[%clk 0:03:01.5]} 6... Nc6 {[%clk
0:03:01.2]} 7. Nbd2 {[%clk 0:02:59.6]} 7... d6 {[%clk 0:03:01.5]} 8. Nb3 {[%clk
0:03:00.1]} 8... Nf6 {[%clk 0:03:00.2]} 9. Nbd4 {[%clk 0:02:59.2]} 9... O-O
{[%clk 0:02:59]} 10. Be3 {[%clk 0:02:58]} 10... a6 {[%clk 0:02:57.1]} 11. Qd2
{[%clk 0:02:58]} 11... Qc7 {[%clk 0:02:56]} 12. Rac1 {[%clk 0:02:57.1]} 12...
Ng4 {[%clk 0:02:46.8]} 13. Bf4 {[%clk 0:02:52.2]} 13... e5 {[%clk 0:02:39.6]}
14. Nxc6 {[%clk 0:02:52.4]} 14... bxc6 {[%clk 0:02:35.8]} 15. Bg3 {[%clk
0:02:52.5]} 15... Be6 {[%clk 0:02:32.7]} 16. h3 {[%clk 0:02:52.5]} 16... Nf6
{[%clk 0:02:32.3]} 17. a3 {[%clk 0:02:47.8]} 17... Rfd8 {[%clk 0:02:30.2]} 18.
c4 {[%clk 0:02:39.5]} 18... Rab8 {[%clk 0:02:23.4]} 19. Qc3 {[%clk 0:02:39.1]}
19... c5 {[%clk 0:02:16.4]} 20. Rfd1 {[%clk 0:02:28.6]} 20... Nd7 {[%clk
0:02:10.1]} 21. Rb1 {[%clk 0:02:27.8]} 21... a5 {[%clk 0:02:07.8]} 22. Nd2
{[%clk 0:02:21.5]} 22... Rb7 {[%clk 0:02:04.6]} 23. Nf1 {[%clk 0:02:21.3]} 23...
Nb8 {[%clk 0:02:04]} 24. Ne3 {[%clk 0:02:20.2]} 24... Nc6 {[%clk 0:02:03.9]} 25.
Nd5 {[%clk 0:02:19]} 25... Bxd5 {[%clk 0:02:03.2]} 26. cxd5 {[%clk 0:02:17.8]}
26... Nd4 {[%clk 0:02:02.4]} 27. b4 {[%clk 0:01:56.7]} 27... Rdb8 {[%clk
0:02:00.5]} 28. bxc5 {[%clk 0:01:53.3]} 28... Rxb1 {[%clk 0:01:58.5]} 29. Rxb1
{[%clk 0:01:47.3]} 29... Rxb1+ {[%clk 0:01:57.8]} 30. Bxb1 {[%clk 0:01:48.2]}
30... Ne2+ {[%clk 0:01:58]} 0-1